Cogmind - Beta 11.1 @@@ ROGUE MODE // 2022.10.28 @ 23:33:21 Player: Noxul Result: Self-destructed Performance ------------- Evolutions (4) 2000 Regions Visited (5) 1000 Robots Destroyed (59) 295 Value Destroyed (1938) 1938 Prototype IDs (3) 60 Alien Tech Used (0) 0 Bonus (0) 0 TOTAL SCORE: 5293 Bonus ------- None Cogmind --------- Core Integrity 534/850 Matter 219/300 Energy 290/290 System Corruption 5% Temperature Cool (0) Movement Walking (200) Ox1 Location -6/Factory Parts ------- > --- POWER (2) -------- Improved Deuterium Engine > --- PROPULSION (4) --- Improved Titanium Leg > --- UTILITY (6) ------ Large Storage Unit > --- WEAPON (3) ------- Light Assault Rifle > --- INVENTORY (15) --- Nuclear Core Improved Deuterium Engine Reinforced Deuterium Engine Light Fission Core Flexi-carbon Leg Power Amplifier High-capacity Storage Unit Mini Grenade Launcher Peak State ------------ > --- POWER ------------ Improved Deuterium Engine Fission Core > --- PROPULSION ------- Improved Carbon-fiber Leg Improved Titanium Leg Flexi-carbon Leg Flexi-carbon Leg > --- UTILITY ---------- Cooling System Improved Cooling System Coolant Injector Large Storage Unit Weapon Cycler > --- WEAPON ----------- High-powered Shock Rifle Thermic Laser Coil Gun > --- INVENTORY -------- Nuclear Core Improved Deuterium Engine Reinforced Deuterium Engine Light Fission Core Flexi-carbon Leg Power Amplifier High-capacity Storage Unit Light Assault Rifle Mini Grenade Launcher [Rating: 60] Favorites ----------- Power Ion Engine Engine Ion Engine Power Core Fission Core Propulsion Light Treads Treads Light Treads Leg Flexi-carbon Leg Utility Large Storage Unit Device Cooling System Storage Large Storage Unit Processor Improved Signal Interpreter Protection Hardened Light Armor Plating Weapon Small Laser Energy Gun Small Laser Energy Cannon Advanced Beam Cannon Ballistic Gun Heavy Assault Rifle Launcher Mini Grenade Launcher Build | -11 -10 -9 -8 -7 -6 ------- Run | Scr Mat Mat Mat Fac Fac Slots Evolved 8 | . . 2 2 2 2 Power 1 | . . . . 1 . Propulsion 2 | . . . 1 . 1 Utility 4 | . . 1 1 1 1 Weapon 1 | . . 1 . . . Parts Attached 55 | . 3 17 6 9 20 Power 6 | . . 2 1 1 2 Engine 5 | . . 2 1 1 1 Core 1 | . . . . . 1 Reactor . | . . . . . . Propulsion 15 | . 2 3 2 1 7 Treads 10 | . 2 3 2 1 2 Leg 5 | . . . . . 5 Wheel . | . . . . . . Hover . | . . . . . . Flight . | . . . . . . Utility 19 | . 1 5 1 6 6 Device 12 | . . 3 . 3 6 Storage 2 | . 1 1 . . . Processor 2 | . . . . 2 . Hackware . | . . . . . . Protection 3 | . . 1 1 1 . Artifact . | . . . . . . Weapon 15 | . . 7 2 1 5 Energy Gun 9 | . . 4 1 1 3 Energy Cannon 1 | . . 1 . . . Ballistic Gun 3 | . . . 1 . 2 Ballistic Cannon . | . . . . . . Launcher 2 | . . 2 . . . Special Weapon . | . . . . . . Impact Weapon . | . . . . . . Slashing Weapon . | . . . . . . Piercing Weapon . | . . . . . . Special Melee Weapon . | . . . . . . Unidentified Prototypes 3 | . . 1 2 . . Parts Lost 29 | . . 4 2 1 22 Power 2 | . . . . . 2 Propulsion 10 | . . 2 1 1 6 Utility 8 | . . . . . 8 Weapon 9 | . . 2 1 . 6 Highest Loss Streak 13 | . . 2 1 1 13 To Critical Strikes 1 | . . 1 . . . Average Slot Usage (%) 91 | . 85 91 97 96 84 Engine 11 | . 14 11 9 15 9 Treads 20 | . 24 21 26 21 11 Leg 2 | . 3 . . . 9 Device 14 | . . 11 9 18 20 Storage 8 | . 14 11 9 7 6 Protection 6 | . . 5 16 7 3 Energy Gun 14 | . 28 19 13 7 12 Energy Cannon 5 | . . 6 9 6 . Ballistic Gun 3 | . . . 4 7 4 Launcher 1 | . . 5 . . . Naked Turns . | . . . . . . Heaviest Build 60 | 12 47 50 55 53 60 Greatest Support 96 | 20 40 40 60 68 96 Greatest Overweight (x) 2 | . 1 2 . 1 1 Average Overweight (x) . | . . . . . . Largest Inventory Capacity 20 | . 20 20 15 15 15 Average Capacity 15 | . 18 16 15 15 15 Most Carried 13 | . 8 13 13 12 12 Average Carried 9 | . 6 8 10 9 9 Final Capacity 20 | 8 20 15 15 15 15 Final Carried 12 | 6 7 12 11 11 8 Class Distribution -------------------- 47% | Scavenger-Tank 21% | Mutant 17% | Scavenger-Mutant 9% | Gunner Dominant Class ---------------- Mutant | -10/Materials Scavenger-Mutant | -9/Materials Scavenger-Tank | -8/Materials Scavenger-Tank | -7/Factory Mutant | -6/Factory Resources | -11 -10 -9 -8 -7 -6 ----------- Run | Scr Mat Mat Mat Fac Fac Matter Collected 865 | 200 30 175 92 159 209 Remotely 209 | . . . . . 209 Salvage Created 2378 | . 30 853 311 412 772 Parts 106 | . 1 44 14 17 30 Haulers Intercepted 5 | . . 2 1 1 1 Recyclers Shooed 1 | . . . . . 1 Parts Field Recycled . | . . . . . . Retrieved Matter . | . . . . . . Parts Self-Destructed . | . . . . . . Prevented . | . . . . . . Kills | -11 -10 -9 -8 -7 -6 ------- Run | Scr Mat Mat Mat Fac Fac Combat Hostiles Destroyed 49 | . 1 23 5 9 11 Guns 31 | . 1 13 2 4 11 Cannons 14 | . . 7 3 4 . AOE 3 | . . 3 . . . Classes Destroyed 11 | . 1 7 . 2 1 Worker 3 | . . 2 . . 1 Hauler 5 | . . 2 1 1 1 Recycler 1 | . . . . . 1 Watcher 1 | . . 1 . . . Swarmer 15 | . . 11 . 4 . Grunt 15 | . 1 5 4 2 3 Brawler 3 | . . 1 . . 2 Duelist 1 | . . 1 . . . Sentry 7 | . . 5 1 1 . Hunter 5 | . . . . 1 4 Programmer 3 | . . . . 1 2 Best Kill Streak 6 | . 1 6 2 3 3 Combat Bots Only 4 | . 1 4 2 3 3 Max Kills in Single Turn 2 | . 1 2 1 1 1 Gunslinging . | . . . . . . Exploded 2 | . . 2 . . . Melee . | . . . . . . Uniques/NPCs Destroyed . | . . . . . . Combat | -11 -10 -9 -8 -7 -6 -------- Run | Scr Mat Mat Mat Fac Fac Damage Taken 4445 | . 69 1034 267 360 2715 Core 469 | . 12 112 17 12 316 Absorbed by Shields . | . . . . . . Core Remaining (%) 92 | 100 95 72 96 98 . Volleys Fired 178 | . 5 72 21 24 56 Largest 3 | . 2 3 3 3 3 Hottest 176 | . 80 120 164 159 176 Shots Fired 444 | . 10 156 63 72 143 Gun 373 | . 10 127 42 51 143 Cannon 69 | . . 27 21 21 . Launcher 2 | . . 2 . . . Special . | . . . . . . Kinetic 91 | . . . 13 24 54 Thermal 351 | . 10 154 50 48 89 Explosive 2 | . . 2 . . . Electromagnetic . | . . . . . . Robot Hit Streak 22 | . 3 14 9 9 22 Robot Miss Streak 6 | . 2 6 5 4 3 Penetration Max 2 | . . . . . 2 Secondary Targets . | . . . . . . Shots Hit Robots 295 | . 5 106 32 44 108 Core Hits 122 | . 2 38 13 17 52 Critical Kills 1 | . . . . 1 . Critical Parts Destroyed . | . . . . . . Critical Strikes 5 | . . . . 2 3 Burn 4 | . . . . 1 3 Meltdown 1 | . . . . 1 . Melee Attacks . | . . . . . . Impact . | . . . . . . Slashing . | . . . . . . Piercing . | . . . . . . Sneak Attacks . | . . . . . . Combat Hostiles . | . . . . . . Follow-up Attacks . | . . . . . . Damage Inflicted 5134 | . 57 1588 546 809 2134 Guns 3979 | . 57 975 322 491 2134 Cannons 937 | . . 395 224 318 . Explosions 212 | . . 212 . . . Melee . | . . . . . . Ramming 6 | . . 6 . . . Kinetic 876 | . . . 106 152 618 Thermal 4040 | . 57 1370 440 657 1516 Explosive 212 | . . 212 . . . Electromagnetic . | . . . . . . Impact . | . . . . . . Slashing . | . . . . . . Piercing . | . . . . . . Highest Corruption 5 | . . . 1 . 5 Average Corruption 2 | . . . 1 . 3 Corruption Purged . | . . . . . . Corruption Blocked . | . . . . . . Effects 6 | . . . . . 6 Message Errors 2 | . . . . . 2 Matter Fused 1 | . . . . . 1 Energy Discharges 1 | . . . . . 1 Misfires 1 | . . . . . 1 Weapon Failures 1 | . . . . . 1 Overload Shots . | . . . . . . Overflow Damage 65 | . . 30 . . 35 Projectiles . | . . . . . . Explosions 65 | . . 30 . . 35 Melee . | . . . . . . Knockbacks . | . . . . . . Impact . | . . . . . . Kinetic . | . . . . . . Secondary . | . . . . . . Self-Inflicted Damage 216 | . . 40 . . 176 Shots 4 | . . 2 . . 2 Rammed 1 | . . 1 . . . Targets Rammed 1 | . . 1 . . . Kicked . | . . . . . . Crushed . | . . . . . . Highest Temperature 149 | . 88 140 149 12 52 Average Temperature 46 | . 53 53 56 4 14 Received Heat Transfer 576 | . 36 255 144 33 108 Siege Activations . | . . . . . . Robots Corrupted . | . . . . . . Combat Hostiles . | . . . . . . Parts Fried . | . . . . . . Impact Corruptions . | . . . . . . Robots Melted 1 | . . . . 1 . Combat Hostiles 1 | . . . . 1 . Parts Melted 22 | . . 5 1 4 12 Heat Transferred 8883 | . 125 2903 890 1371 3594 Parts Sabotaged . | . . . . . . Parts Stolen . | . . . . . . Parts Stripped . | . . . . . . Power Chain Reactions . | . . . . . . Missiles Intercepted . | . . . . . . Alert | -11 -10 -9 -8 -7 -6 ------- Run | Scr Mat Mat Mat Fac Fac Peak Influence 359 | . 60 359 326 174 333 Initial 151 | . . . 151 56 65 Average 141 | . 15 177 227 88 152 Maximum Alert Level 1 | . . 1 1 . 1 Low Security (%) 80 | . 100 79 50 100 65 Level 1 19 | . . 20 49 . 34 Level 2 . | . . . . . . Level 3 . | . . . . . . Level 4 . | . . . . . . Level 5 . | . . . . . . High Security . | . . . . . . Max Security . | . . . . . . Squads Dispatched 8 | . 1 1 1 1 4 Investigation 1 | . . 1 . . . Extermination 3 | . . . . 1 2 Reinforcement 4 | . 1 . 1 . 2 Assault . | . . . . . . Garrison . | . . . . . . Intercept . | . . . . . . Searches Triggered . | . . . . . . Construction Impeded . | . . . . . . Haulers Reinforced . | . . . . . . Active Scanning Responses . | . . . . . . Cargo Convoy Interrupts . | . . . . . . Stealth | -11 -10 -9 -8 -7 -6 --------- Run | Scr Mat Mat Mat Fac Fac Distress Signals 4 | . . 1 1 1 1 Communications Jammed . | . . . . . . Distress Signals . | . . . . . . Times Spotted 84 | . 3 30 10 17 24 Peak Tracking Total 9 | . 1 4 3 5 9 Tactical Retreats 6 | . . 1 2 1 2 Traps | -11 -10 -9 -8 -7 -6 ------- Run | Scr Mat Mat Mat Fac Fac Traps Triggered 3 | . . 2 1 . . Indirectly . | . . . . . . Trap Hack Attempts . | . . . . . . Triggered . | . . . . . . Disarmed . | . . . . . . Reprogrammed . | . . . . . . Reused . | . . . . . . Traps Extracted . | . . . . . . Installed . | . . . . . . Triggered . | . . . . . . Machines | -11 -10 -9 -8 -7 -6 ---------- Run | Scr Mat Mat Mat Fac Fac Machines Disabled 3 | . . . 1 . 2 Max in Single Turn 2 | . . . 1 . 2 Machines Sabotaged . | . . . . . . Garrisons Compromised . | . . . . . . Overloaded Fab Kills . | . . . . . . Hacking | -11 -10 -9 -8 -7 -6 --------- Run | Scr Mat Mat Mat Fac Fac Machines Accessed 13 | . 2 4 2 2 3 Terminals 13 | . 2 4 2 2 3 Fabricators . | . . . . . . Repair Stations . | . . . . . . Recycling Units . | . . . . . . Scanalyzers . | . . . . . . Garrison Access . | . . . . . . Total Hacks 36 | . 9 10 9 5 3 Successful 15 | . 1 6 5 1 2 Failed 21 | . 8 4 4 4 1 Catastrophic 2 | . . . . 1 1 Database Lockouts . | . . . . . . Manual 24 | . 8 6 6 1 3 Terminals 36 | . 9 10 9 5 3 Fabricators . | . . . . . . Repair Stations . | . . . . . . Recycling Units . | . . . . . . Scanalyzers . | . . . . . . Garrison Access . | . . . . . . Terminal Hacks 7 | . 1 2 1 1 2 Robot Analysis 1 | . . 1 . . . Open DSF 2 | . . . . 1 1 Unreport Threat 2 | . 1 . . . 1 Surveillance Status 1 | . . 1 . . . Zone Layout 1 | . . . 1 . . Fabricator Hacks . | . . . . . . Repair Station Hacks . | . . . . . . Recycling Unit Hacks . | . . . . . . Scanalyzer . | . . . . . . Garrison Access Hacks . | . . . . . . Unauthorized Hacks 8 | . . 4 4 . . Terminals 8 | . . 4 4 . . Track 3 | . . 2 1 . . Botnet 2 | . . . 2 . . Disrupt 3 | . . 2 1 . . Fabricators . | . . . . . . Repair Stations . | . . . . . . Recycling Units . | . . . . . . Scanalyzers . | . . . . . . Garrison Access . | . . . . . . Data Cores Recovered . | . . . . . . Used . | . . . . . . Hacking Detections 10 | . 2 2 2 2 2 Full Trace Events . | . . . . . . Feedback Events . | . . . . . . Feedback Blocked . | . . . . . . Robot Schematics Acquired . | . . . . . . Robots Built . | . . . . . . Authchips . | . . . . . . Time . | . . . . . . Total Robot Build Rating . | . . . . . . Part Schematics Acquired . | . . . . . . Parts Built . | . . . . . . Authchips . | . . . . . . Time . | . . . . . . Total Part Build Rating . | . . . . . . Parts Repaired . | . . . . . . Time . | . . . . . . Parts Recycled . | . . . . . . Recycled Matter . | . . . . . . Retrieved Matter . | . . . . . . Retrieved Components . | . . . . . . Parts Scanalyzed . | . . . . . . Part Schematics Acquired . | . . . . . . Parts Damaged . | . . . . . . Bothacking | -11 -10 -9 -8 -7 -6 ------------ Run | Scr Mat Mat Mat Fac Fac Used RIF Installer . | . . . . . . Robots Hacked . | . . . . . . Non-combat . | . . . . . . Combat . | . . . . . . Robot Hacks Applied . | . . . . . . Relay Couplers Released . | . . . . . . Fabnet Peak Effective % . | . . . . . . Robots Rewired . | . . . . . . Allies Hacked . | . . . . . . Hacks Repelled . | . . . . . . Allies | -11 -10 -9 -8 -7 -6 -------- Run | Scr Mat Mat Mat Fac Fac Total Allies . | . . . . . . Largest Group . | . . . . . . Highest-Rated Group . | . . . . . . Highest-Rated Ally . | . . . . . . Total Orders . | . . . . . . Ally Attacks . | . . . . . . Total Damage . | . . . . . . Kills . | . . . . . . Allies Corrupted . | . . . . . . Allies Melted . | . . . . . . Intel | -11 -10 -9 -8 -7 -6 ------- Run | Scr Mat Mat Mat Fac Fac Robot Analysis Total 1 | . . 1 . . . Derelict Logs Recovered . | . . . . . . Drone Launches . | . . . . . . Drone Recoveries . | . . . . . . Exploration | -11 -10 -9 -8 -7 -6 ------------- Run | Scr Mat Mat Mat Fac Fac Turns Passed 3391 | . 262 1119 421 974 615 Spaces Moved 1508 | 1 110 434 199 495 269 Core . | . . . . . . Treads 1335 | . 88 434 199 495 119 Legs 173 | 1 22 . . . 150 Wheels . | . . . . . . Hover . | . . . . . . Flight . | . . . . . . Fastest Speed 120 | 120 120 160 160 160 120 Average Speed 167 | 120 216 176 160 166 141 Slowest Speed 320 | 120 240 320 160 240 240 Overloaded Moves . | . . . . . . Propulsion Burnouts . | . . . . . . Robots Hopped . | . . . . . . Cave-ins Triggered . | . . . . . . Exploration Rate (%) 18 | 2 23 48 15 14 11 Regions Visited 5 Branch Regions . Pre-discovered Areas . | . . . . . . Known Exits Taken 1 | . . . . 1 . Unknown Exits Taken 4 | 1 1 1 1 . . Scrap Searched . | . . . . . . Spaces Dug . | . . . . . . Terrain Destroyed 42 | . . 15 . . 27 Melee . | . . . . . . Projectile . | . . . . . . AOE 42 | . . 15 . . 27 Terrain Rammed . | . . . . . . Walls Destroyed . | . . . . . . Machines Disabled . | . . . . . . Actions | -11 -10 -9 -8 -7 -6 --------- Run | Scr Mat Mat Mat Fac Fac Total 1993 | . 125 640 254 590 384 Wait 177 | . 2 91 20 45 19 Move 1503 | . 109 433 198 494 269 Hop . | . . . . . . Pick Up 50 | . 3 18 5 9 15 Fast Attach 4 | . 1 . 1 1 1 Attach 32 | . . 7 3 4 18 Detach 2 | . . . . 1 1 Swap 20 | . 2 10 3 4 1 Drop 26 | . 3 8 3 8 4 Fire 178 | . 5 72 21 24 56 Melee . | . . . . . . Ram . | . . . . . . Kick . | . . . . . . Crush 1 | . . 1 . . . Escape Stasis . | . . . . . . Rewire . | . . . . . . Trap . | . . . . . . Miscellaneous . | . . . . . . Route ------- -11/Scrapyard -10/Materials -9/Materials (discovered 2 exits: *Mat / [*Min]) -8/Materials -7/Factory -6/Factory (discovered 1 exit: [*Low]) History --------- Turn | Location | Event 1 | -11/Scrapyard | Discovered new exit (range 0) 1 | -11/Scrapyard | Entered Materials 229 | -10/Materials | Discovered new exit (range 4) 263 | -10/Materials | Entered another Materials area 263 | -9/Materials | Evolved 2 slots: Utility x1, Weapon x1 792 | -9/Materials | Discovered new exit (range 12) 1209 | -9/Materials | Build established: Scavenger-Mutant 1336 | -9/Materials | Discovered new exit (range 13) 1382 | -9/Materials | Entered another Materials area 1382 | -8/Materials | Evolved 2 slots: Propulsion x1, Utility x1 1527 | -8/Materials | Discovered new exit (range 15) 1681 | -8/Materials | Build established: Scavenger-Tank 1803 | -8/Materials | Entered Factory 1803 | -7/Factory | Evolved 2 slots: Power x1, Utility x1 2527 | -7/Factory | Discovered new exit (range 5) 2775 | -7/Factory | Identified exit to Factory 2777 | -7/Factory | Entered another Factory area 2777 | -6/Factory | Evolved 2 slots: Propulsion x1, Utility x1 3114 | -6/Factory | Lost 3 parts (1p1n1u) 3333 | -6/Factory | Discovered new exit (range 15) 3392 | -6/Factory | Self-destructed Last Messages --------------- 03382_ K-01 Serf collects debris. 03382_ Slug penetrates X-67 Chaingunner. 03383_ Knocked back. 03385_ Cooling System destroyed. 03385_ U-05 Engineer destroyed. 03385_ K-01 Serf collects debris. 03385_ Slug penetrates Wall. 03386_ K-01 Serf collects debris. 03387_ Penetrated by Slug. 03387_ Imp. Carbon-fiber Leg destroyed. 03387_ Penetrated by Slug. 03389_ K-01 Serf collects debris. 03389_ Penetrated by Slug. 03390_ ALERT: Cargo convoy en route, clear transfer corridor. 03390_ K-01 Serf collects debris. 03392_ Slug penetrates P-60 Hacker. 03392_ Coil Gun destroyed. 03392_ Knocked back. 03392_ K-01 Serf collects debris. [Achievement: Back For More] Map ----- +----------------------------------------------------+ | ?????????????????????????????????????????????????? | | ?????????????????????????????????????????????????? | | ?????????????????????????????????????????????????# | | ????????????????????????????????????????????????? | | ????????????????????????????????????????????????? | | ???????????????????????????????????????????????? | | ???????????????????????????????????????????????? | | ??????????????????????????????????????????????? | | ??????????????????????????????????????????????? | | ??????????????????????????????????????????????? | | ??????????????????????????????????????????????? | | ?????????????????????????????????????????????? | | ??????????????????????????????????????????????? | | ?????????????????????????????????????????????????? | | ?????????????????????????????????????????????????? | | ?????????????????????????????????????????????????? | | ?????????????????????????????????????????????????" | | ??????????????????????????????????????????????? "" | | ???????????????????????????????????????????????? | | ??????????? ????????????????###########??????????? | | ?????????? ?????????????## ]!! * #??????????" | | ?????????? ############# ]! #?????????"" | | ????????? ^ ^ ! %# ]! #? ?????# | | ????????? u k%%k# % #? #????# | | ????????? < H !* !% # % #? #????# | | ????????? ] |%=u @ +%% [ = #? #????#### | | ????????? h p! # % ## #???????? | | ????????? k h #### """k! # ## #???????? | | ?????????? ??????# "F x############ ##??????? | | ???????????????????# """ x #??????? | | ???????????????????# """ ######## | | ???????????????????# """ # | | ???????????????????# #"" | | ????????????????+ #"" | | ????????????????#+##+################ #"T ! | | ???????????????????????????????????## #"" | | ???????????????????????????????????# #"" | | ???????????????????????????????????#T # | | ???????????????????????????????????## / """ | | ????????????????????????????????????# # """ | | ????????????????????????????????????# # """ | | ????????????????????????????????????# # | | ????????????????????????????????????# ###+#### | | ????????????????????????????????????# ????? | | ????????????????????????????????????# ? | | ????????????????????????????????????# | | ????????????????????????????????????# | | ????????????????????????????????????# | | ????????????????????????????????????# ######## | | ????????????????????????????????????# #??????? | +----------------------------------------------------+ Best States ------------- Heat Dissipation 86 Coolant Potential 65 Energy Generation 33 Energy Capacity 500 Matter Stores 300 Matter Capacity 300 Sight Range 16 Terrain Scan Density 10 Power Amplification 20 Armor Coverage 300 Resistance: KI 20 Weapon Cycling 15 Evasion (%) 55 Targeting Accuracy 5 Recoil Reduction 7 Item Schematics ----------------- None Robot Schematics ------------------ None Fabricated ------------ Nothing Alien Tech Used ----------------- None Achievements -------------- Back For More Challenges ------------ None Game ------ Seed ReactiveThrusterMallet Manual? 0 Play Time 00:37:54 Cumulative 30.2 hours Start 2022.10.28 @ 22:58:13 End 2022.10.28 @ 23:33:21 Sessions 1 Manual Loads 0 Difficulty Rogue Special Mode None Game No. 50 Rogue 50 Adventurer 0 Explorer 0 Win Type - Total 0 Types 0/0/0/0/0/0/0/0/0 Lore% 18 Gallery% 31 Achievement% 27 Wizard Run 0 Options --------- ASCII 0 Keyboard 0 Movement Mouse Keybinds 0 Fullscreen 1 Font 18/Terminus Map View 76x50 Tactical HUD 1 Map Filters NONE Filters NONE Steam 1 RUN: e53eb41a-ad45-430e-9012-e210504ab2a4